lending/lending_fUSD_20251121
["ID","MTS","AMOUNT","RATE_DAILY","PERIOD"]
[394546454,1763690179175,753.94,0.00032876,120]
[394546455,1763690179560,753.94,0.00032876,120]
[394546456,1763690179663,753.94,0.00032876,120]
[394546457,1763690179896,753.94,0.00032876,120]
[394546458,1763690180127,753.94,0.00032876,120]
[394546459,1763690180365,753.94,0.00032876,120]
[394546460,1763690180649,753.94,0.00032876,120]
[394546461,1763690180874,753.94,0.00032876,120]
[394546462,1763690181118,753.94,0.00032876,120]
[394546463,1763690181359,753.94,0.00032876,120]
[394546464,1763690181594,753.94,0.00032876,120]
[394546465,1763690181821,753.94,0.00032876,120]
[394546466,1763690182057,753.94,0.00032876,120]
[394546467,1763690182290,753.94,0.00032876,120]
[394546468,1763690182553,753.94,0.00032876,120]
[394546469,1763690182787,753.94,0.00032876,120]
[394546470,1763690183068,753.94,0.00032876,120]
[394546471,1763690183316,753.94,0.00032876,120]
[394546472,1763690183571,753.94,0.00032876,120]
[394546473,1763690183805,753.94,0.00032876,120]
[394546474,1763690184055,753.94,0.00032876,120]
[394546475,1763690184291,754.06,0.00032876,120]
[394546476,1763690193051,1557.55462871,0.0003,120]
[394546477,1763690217232,1500.0,0.0003,120]
[394546478,1763690218305,10000.0,0.00035616,120]
[394546479,1763690225781,620.0,0.00041916,120]
[394546480,1763690226433,642.94,0.00041916,120]
[394546481,1763690227028,642.94,0.00041916,120]
[394546482,1763690239731,500.0,0.00041916,120]
[394546483,1763690240343,518.5,0.00041916,120]
[394546485,1763690296091,500.0,0.00041916,120]
[394546486,1763690296692,518.5,0.00041916,120]
[394546487,1763690297297,518.5,0.00041916,120]
[394546489,1763690353726,500.0,0.00041916,120]
[394546490,1763690354357,500.0,0.00041916,120]
[394546491,1763690410370,10000.0,0.00035616,120]
[394546492,1763690413498,150.0,0.00035616,120]
[394546493,1763690415111,500.0,0.00041916,120]
[394546494,1763690415520,500.0,0.00041916,120]
[394546495,1763690480216,500.0,0.00041916,120]
[394546496,1763690480844,518.5,0.00041916,120]
[394546497,1763690481487,537.6845,0.00041916,120]
[394546498,1763690482098,557.5788265,0.00041916,120]
[394546499,1763690482738,557.5788265,0.00041916,120]
[394546500,1763690485189,673.61654296,0.00041916,30]
[394546501,1763690505215,10000.0,0.00035616,120]
[394546503,1763690579196,10000.0,0.00035616,120]
[394546504,1763690657708,10000.0,0.00035616,120]
[394546505,1763690694357,2856.0,0.00035616,120]
[394546516,1763690852562,5668.77,0.00015975,2]
[394546520,1763690945753,220.20550918,0.00015895,2]
[394546534,1763691031857,-1200.0,0.00016199,2]
[394546535,1763691031866,-162.18668808,0.000162,2]
[394546536,1763691031879,-150.0,0.000162,2]
[394546537,1763691031888,-158.05916264,0.000162,2]
[394546538,1763691031897,-150.0,0.000162,2]
[394546539,1763691031906,-217.6507251,0.000162,2]
[394546540,1763691031916,-152.79366236,0.000162,2]
[394546541,1763691031924,-157.00179297,0.000162,2]
[394546542,1763691031933,-151.00481372,0.00016213,2]
[394546543,1763691031942,-881.0,0.00016292,2]
[394546544,1763691031951,-300.0,0.00016312,2]
[394546545,1763691031961,-300.0,0.00016312,2]
[394546546,1763691031971,-200.0,0.00016313,2]
[394546547,1763691031979,-150.0,0.00016318,2]
[394546548,1763691031988,-1200.0,0.00016335,2]
[394546549,1763691031998,-1706.71580598,0.00016438,2]
[394546550,1763691032007,-338.57656952,0.00016438,2]
[394546551,1763691032016,-166.66,0.00016523,2]
[394546552,1763691032025,-281.0,0.00016598,2]
[394546553,1763691032034,-3469.53,0.00016599,2]
[394546554,1763691032043,-5319.63069716,0.00016599,2]
[394546555,1763691032055,-2082.37526384,0.00016599,2]
[394546556,1763691032066,-776.28283243,0.00016599,2]
[394546557,1763691032079,-555.66208952,0.00016599,2]
[394546558,1763691032090,-1266.03911705,0.00016599,2]
[394546559,1763691032100,-999.0,0.00016601,3]
[394546560,1763691032110,-151.0,0.00016608,2]
[394546561,1763691032119,-192.45614133,0.00016608,2]
[394546563,1763691032128,-812.64,0.00016618,2]
[394546565,1763691032137,-165.64,0.0001671,2]
[394546566,1763691032146,-1269.49627203,0.00016736,2]
[394546567,1763691032160,-166.7,0.0001675,2]
[394546568,1763691032169,-17.17894708,0.000168,2]
[394546569,1763691032192,-982.82105292,0.000168,2]
[394546570,1763691032202,-166.66,0.00016864,2]
[394546571,1763691032212,-1329.03441809,0.00016873,2]
[394546572,1763691032221,-766.98,0.00016941,2]
[394546573,1763691032233,-306.09196836,0.00016967,2]
[394546574,1763691032258,-197.74909079,0.00016967,2]
[394546575,1763691032267,-52.25090921,0.00016967,2]
[394546576,1763691032279,-447.74909079,0.00016967,2]
[394546577,1763691032288,-502.28834181,0.00016967,2]
[394546578,1763691032297,-500.89697137,0.00016967,2]
[394546579,1763691032307,-500.0,0.00016967,2]
[394546580,1763691032316,-346.75021403,0.00016967,2]
[394546581,1763691032325,-185.90486008,0.00016971,2]
[394546582,1763691032335,-78.35435917,0.00016972,2]
[394546700,1763691037869,-161.81791962,0.00016972,2]
[394546701,1763691037910,-309.82772121,0.00016972,2]
[394546702,1763691037923,-500.37124276,0.00016973,2]
[394546703,1763691037932,-500.0,0.00016973,2]
[394546704,1763691037941,-500.0,0.00016973,2]
[394546705,1763691037951,-500.0,0.00016973,2]
[394546706,1763691037967,-164.88087836,0.00016973,2]
[394546707,1763691037976,-500.8241093,0.00016973,2]
[394546708,1763691037985,-738.17268672,0.00016987,2]
[394546709,1763691037997,-590.86173135,0.00016987,2]
[394546710,1763691038007,-250.0,0.00017,2]
[394546711,1763691038016,-956.96,0.00017041,2]
[394546712,1763691038025,-1329.03441807,0.00017101,2]
[394546713,1763691038035,-179.37,0.00017111,2]
[394546714,1763691038044,-151.0,0.00017148,2]
[394546715,1763691038055,-425.57,0.0001715,2]
[394546716,1763691038064,-833.0,0.00017178,2]
[394546717,1763691038075,-300.0,0.00017178,2]
[394546719,1763691038084,-166.66,0.00017205,2]
[394546721,1763691038094,-151.0,0.00017212,2]
[394546723,1763691038104,-766.98,0.00017215,2]
[394546725,1763691038114,-1329.03441807,0.00017215,2]
[394546726,1763691038128,-250.0,0.00017304,2]
[394546728,1763691038137,-1329.03441807,0.00017329,2]
[394546729,1763691038147,-6496.0,0.00017398,2]
[394546730,1763691038160,-1606.0,0.00017398,2]
[394546731,1763691038170,-2659.0,0.00017398,2]
[394546732,1763691038179,-151.00481371,0.000174,2]
[394546733,1763691038189,-1040.08938557,0.000174,2]
[394546734,1763691038201,-4000.0,0.000174,2]
[394546735,1763691038216,-891.6161935,0.000174,2]
[394546736,1763691040070,-336.19999994,0.00017398,2]
[394546737,1763691040229,-224.80000006,0.00017398,2]
[394546738,1763691040240,-180.48705649,0.000174,2]
[394546739,1763691040251,-303.68794345,0.000174,2]
[394546751,1763691043368,-1328.89493389,0.000174,2]
[394546753,1763691046134,-4000.0,0.000174,2]
[394546754,1763691046217,-3235.28,0.000174,2]
[394546755,1763691046248,-87150.77363297,0.000174,2]
[394546756,1763691046260,-47773.51585413,0.000174,2]
[394546757,1763691046270,-1118.52234043,0.00017404,2]
[394546758,1763691046279,-1329.03441807,0.00017444,2]
[394546759,1763691046289,-1000.0,0.00017467,2]
[394546760,1763691046298,-766.98,0.00017489,2]
[394546761,1763691046308,-150.0,0.000175,2]
[394546762,1763691046317,-150.201,0.000175,2]
[394546763,1763691046327,-150.0,0.000175,2]
[394546764,1763691046335,-150.232,0.000175,2]
[394546765,1763691046345,-150.101,0.000175,2]
[394546766,1763691046354,-150.0,0.000175,2]
[394546767,1763691046363,-150.0,0.000175,2]
[394546768,1763691046372,-3435.0,0.000175,2]
[394546769,1763691046382,-578.084,0.000175,2]
[394546770,1763691046392,-1319.0,0.000175,2]
[394546771,1763691046401,-612.171,0.000175,2]
[394546772,1763691046411,-826.0,0.000175,2]
[394546773,1763691046420,-1601.0,0.000175,2]
[394546774,1763691046429,-798.155,0.000175,2]
[394546775,1763691046439,-1256.0,0.000175,2]
[394546776,1763691046449,-1192.0,0.000175,2]
[394546777,1763691046458,-1000.0,0.00017515,2]
[394546778,1763691046468,-503.94697356,0.00017515,2]
[394546779,1763691046477,-502.41292105,0.00017521,2]
[394546780,1763691046487,-1000.0,0.00017521,2]
[394546781,1763691046496,-166.66,0.00017545,2]
[394546782,1763691046506,-1329.03441807,0.00017558,2]
[394546783,1763691046515,-1329.03441807,0.00017672,2]
[394546784,1763691046525,-155.27138993,0.00017743,2]
[394546786,1763691046534,-2729.4534524,0.00017746,2]
[394546788,1763691046543,-179.29671391,0.00017746,2]
[394546789,1763691046553,-766.98,0.00017763,2]
[394546791,1763691046562,-2729.45345234,0.00017763,2]
[394546799,1763691046685,-2729.45345234,0.0001778,2]
[394546800,1763691046695,-1329.03441807,0.00017786,2]
[394546801,1763691046704,-1680.0,0.00017796,2]
[394546802,1763691046714,-2729.45345234,0.00017797,2]
[394546803,1763691046723,-151.664485,0.00017814,2]
[394546804,1763691046732,-2729.45345234,0.00017814,2]
[394546805,1763691046741,-300.0,0.00017819,2]
[394546806,1763691046751,-300.0,0.00017819,2]
[394546807,1763691046760,-300.0,0.00017819,2]
[394546808,1763691046770,-500.0,0.00017819,2]
[394546809,1763691046781,-500.0,0.00017819,2]
[394546810,1763691046799,-540.51220794,0.00017819,2]
[394546811,1763691046808,-500.0,0.00017819,2]
[394546812,1763691046817,-500.0,0.00017819,2]
[394546813,1763691046827,-500.0,0.00017819,2]
[394546814,1763691046836,-500.0,0.00017819,2]
[394546815,1763691046846,-500.0,0.00017819,2]
[394546816,1763691046856,-500.0,0.00017819,2]
[394546817,1763691046865,-496.39216165,0.00017819,2]
[394546818,1763691046875,-500.0,0.00017819,2]
[394546819,1763691046884,-500.0,0.00017819,2]
[394546820,1763691046893,-500.0,0.00017819,2]
[394546821,1763691046903,-500.0,0.00017819,2]
[394546822,1763691046912,-500.0,0.00017819,2]
[394546823,1763691046922,-585.85920158,0.00017819,2]
[394546824,1763691046931,-500.0,0.00017819,2]
[394546825,1763691046946,-500.0,0.00017819,2]
[394546826,1763691046955,-500.0,0.00017819,2]
[394546827,1763691046965,-601.73389229,0.00017819,2]
[394546828,1763691046974,-500.0,0.00017819,2]
[394546829,1763691046983,-500.0,0.00017819,2]
[394546830,1763691046993,-500.0,0.00017819,2]
[394546831,1763691047002,-500.0,0.00017819,2]
[394546832,1763691047011,-500.0,0.00017819,2]
[394546833,1763691047020,-500.0,0.00017819,2]
[394546834,1763691047029,-500.0,0.00017819,2]
[394546835,1763691047038,-500.0,0.00017819,2]
[394546836,1763691047047,-500.0,0.00017819,2]
[394546837,1763691047056,-500.0,0.00017819,2]
[394546838,1763691047066,-266.16469901,0.00017819,2]
[394546839,1763691047078,-300.0,0.0001782,2]
[394546840,1763691047088,-310.50835218,0.0001782,2]
[394546841,1763691047099,-300.0,0.0001782,2]
[394546842,1763691047110,-258.32504506,0.0001782,2]
[394546843,1763691047122,-250.0,0.0001782,2]
[394546844,1763691047133,-420.0,0.00017829,2]
[394546845,1763691047143,-420.0,0.00017829,2]
[394546846,1763691047152,-2729.45345234,0.00017832,2]
[394546847,1763691047166,-403.79038237,0.00017845,2]
[394546848,1763691047178,-255.92392539,0.00017845,2]
[394546849,1763691047188,-500.0,0.00017845,2]
[394546850,1763691047199,-520.42576457,0.00017845,2]
[394546851,1763691047210,-500.0,0.00017845,2]
[394546852,1763691047221,-31981.4229835,0.00017846,2]
[394546853,1763691047232,-2415.5649651,0.00017846,2]
[394546854,1763691047242,-1225.5705747,0.00017846,2]
[394546855,1763691047251,-235173.57731297,0.00017846,2]
[394546857,1763691136926,2138.0,0.00035616,120]
[394546875,1763691305562,-6225.70833094,0.00041916,30]
[394546876,1763691305602,-186.53704077,0.00041916,120]
[394546877,1763691305643,-154.045253,0.00041916,50]
[394546878,1763691305682,-151.897655,0.00041916,50]
[394546879,1763691305720,-152.804847,0.00041916,50]
[394546880,1763691305756,-153.938024,0.00041916,50]
[394546881,1763691305792,-153.727621,0.00041916,50]
[394546882,1763691305827,-689.67894,0.00041916,60]
[394546883,1763691305863,-689.67894,0.00041916,60]
[394546884,1763691305898,-689.67894,0.00041916,60]
[394546885,1763691305934,-689.67894,0.00041916,60]
[394546886,1763691305968,-689.67894,0.00041916,60]
[394546887,1763691306004,-151.0,0.00041916,50]
[394546888,1763691306038,-152.48119,0.00041916,50]
[394546889,1763691306079,-151.0,0.00041916,50]
[394546890,1763691306114,-151.000006,0.00041916,50]
[394546891,1763691306152,-189.857513,0.00041916,50]
[394546892,1763691306189,-153.897816,0.00041916,50]
[394546893,1763691306228,-151.0,0.00041916,50]
[394546894,1763691306272,-151.0,0.00041916,50]
[394546895,1763691306313,-151.0,0.00041916,50]
[394546896,1763691306353,-151.0,0.00041916,50]
[394546897,1763691306390,-154.753326,0.00041916,50]
[394546898,1763691306430,-151.0,0.00041916,30]
[394546899,1763691306470,-151.0,0.00041916,30]
[394546900,1763691306507,-151.0,0.00041916,30]
[394546901,1763691306543,-157.046347,0.00041916,30]
[394546902,1763691306581,-152.950085,0.00041916,50]
[394546903,1763691306620,-151.0,0.00041916,50]
[394546904,1763691306658,-152.710429,0.00041916,50]
[394546905,1763691306697,-151.0,0.00041916,50]
[394546906,1763691306733,-153.905955,0.00041916,50]
[394546907,1763691306768,-154.169763,0.00041916,50]
[394546908,1763691306802,-151.0,0.00041916,50]
[394546909,1763691306836,-151.0,0.00041916,50]
[394546910,1763691306869,-151.0,0.00041916,50]
[394546911,1763691306904,-153.123799,0.00041916,50]
[394546912,1763691306937,-159.473142,0.00041916,50]
[394546913,1763691306972,-151.0,0.00041916,50]
[394546914,1763691307005,-151.0,0.00041916,50]
[394546915,1763691307040,-152.935594,0.00041916,50]
[394546916,1763691307075,-156.842048,0.00041916,50]
[394546917,1763691307109,-151.0,0.00041916,50]
[394546918,1763691307144,-166.657581,0.00041916,50]
[394546919,1763691307296,-151.0,0.00041916,50]
[394546920,1763691307334,-151.0,0.00041916,50]
[394546921,1763691307371,-151.0,0.00041916,50]
[394546922,1763691307408,-153.363338,0.00041916,50]
[394546923,1763691307445,-239.553157,0.00041916,50]
[394546924,1763691307482,-640.44058154,0.00041916,120]
[394546925,1763691307519,-638.92856943,0.00041916,120]
[394546928,1763691319301,153.055746,0.00041916,50]
[394546929,1763691321672,153.725743,0.00041916,50]
[394546931,1763691332302,154.045396,0.00041916,30]
[394546932,1763691333381,275.55745211,0.00035616,120]
[394546933,1763691333428,156.590447,0.00041916,50]
[394546936,1763691342151,182.79827055,0.00041916,60]
[394546937,1763691351516,153.912815,0.00041916,50]
[394546938,1763691365663,188.65913468,0.00041916,30]
[394546939,1763691365748,520.0,0.00041916,120]
[394546940,1763691365903,199.07035695,0.00041916,60]
[394546941,1763691365950,500.0,0.00041916,120]
[394546942,1763691365994,2980.72459851,0.00041916,120]
[394546943,1763691366331,500.0,0.00041916,120]
[394546944,1763691366410,500.0,0.00041916,120]
[394546945,1763691366456,539.24,0.00041916,120]
[394546946,1763691366574,151.08167879,0.00041916,120]
[394546947,1763691366827,500.0,0.00041916,120]
[394546948,1763691367424,500.0,0.00041916,120]
[394546949,1763691368998,218.20413213,0.00041916,120]
[394546950,1763691372669,500.0,0.00041916,120]
[394546951,1763691372727,500.0,0.00041916,120]
[394546952,1763691372980,250.0,0.00041916,120]
[394546953,1763691373366,500.0,0.00041916,120]
[394546954,1763691373594,250.0,0.00041916,120]
[394546955,1763691373907,518.5,0.00041916,120]
[394546956,1763691374737,537.6845,0.00041916,120]
[394546957,1763691375170,557.5788265,0.00041916,120]
[394546958,1763691375673,414.0,0.00041916,120]
[394546959,1763691375774,578.20924308,0.00041916,120]
[394546960,1763691376251,429.318,0.00041916,120]
[394546961,1763691376401,599.60298507,0.00041916,120]
[394546962,1763691376723,250.0,0.00041916,120]
[394546963,1763691376897,445.202766,0.00041916,120]
[394546964,1763691377011,512.45733021,0.00041916,120]
[394546965,1763691377085,621.78829552,0.00041916,120]
[394546966,1763691377408,250.0,0.00041916,120]
[394546967,1763691377537,461.67526834,0.00041916,120]
[394546968,1763691378140,250.0,0.00041916,120]
[394546969,1763691378233,478.75725327,0.00041916,120]
[394546970,1763691378861,496.47127164,0.00041916,120]
[394546971,1763691379465,514.84070869,0.00041916,120]
[394546972,1763691380096,533.88981491,0.00041916,120]
[394546973,1763691380726,553.64373807,0.00041916,120]
[394546975,1763691381522,574.12855637,0.00041916,120]
[394546976,1763691381994,595.37131296,0.00041916,120]
[394546977,1763691382653,617.40005154,0.00041916,120]
[394546978,1763691383120,500.0,0.00041916,120]
[394546979,1763691383258,617.40005154,0.00041916,120]
[394546980,1763691385882,200.0,0.00041916,120]
[394546981,1763691386535,200.0,0.00041916,120]
[394546983,1763691427567,595.71486303,0.00041916,120]
[394546984,1763691427622,613.18952919,0.00041916,120]
[394546985,1763691428859,10000.0,0.00016173,2]
[394546986,1763691429601,595.96649478,0.00041916,30]
[394546987,1763691431037,269.1041127,0.00041916,120]
[394546988,1763691431422,151.0,0.00041916,50]
[394546989,1763691431701,151.0,0.00041916,50]
[394546990,1763691431990,151.0,0.00041916,50]
[394546991,1763691432319,151.0,0.00041916,50]
[394546992,1763691432480,620.0,0.00041916,120]
[394546993,1763691432948,151.0,0.00041916,50]
[394546994,1763691433442,642.94,0.00041916,120]
[394546995,1763691433565,297.86303,0.00041916,50]
[394546996,1763691433735,666.72878,0.00041916,120]
[394546997,1763691434368,691.39774486,0.00041916,120]
[394546998,1763691434997,716.97946142,0.00041916,120]
[394546999,1763691435616,743.50770149,0.00041916,120]
[394547000,1763691436249,771.01748645,0.00041916,120]
[394547001,1763691436465,10000.0,0.00016173,2]
[394547002,1763691436943,799.54513345,0.00041916,120]
[394547003,1763691442331,165.68471728,0.00041916,120]
[394547004,1763691466154,4280.69,0.00016173,2]
[394547005,1763691486094,250.0,0.00041913,120]
[394547006,1763691490782,610.80981821,0.00041913,120]
[394547007,1763691506064,500.0,0.00041913,120]
[394547008,1763691506393,500.0,0.00041913,120]
[394547009,1763691507392,636.4953362,0.00041913,120]
[394547010,1763691550754,274.50469628,0.00041913,120]
[394547011,1763691551755,500.0,0.00041913,120]
[394547012,1763691560033,1000.0,0.00041913,30]
[394547013,1763691561867,1000.0,0.00041913,30]
[394547014,1763691562428,1000.0,0.00041913,30]
[394547015,1763691563010,1000.0,0.00041913,30]
[394547016,1763691563571,1000.0,0.00041913,30]
[394547017,1763691564130,1000.0,0.00041913,30]
[394547018,1763691564704,1000.0,0.00041913,30]
[394547019,1763691565311,1000.0,0.00041913,30]
[394547020,1763691565870,1000.0,0.00041913,30]
[394547021,1763691566473,1000.0,0.00041913,30]
[394547022,1763691567083,1000.0,0.00041913,30]
[394547023,1763691567637,1000.0,0.00041913,30]
[394547024,1763691568805,1000.0,0.00041913,30]
[394547025,1763691569341,1000.0,0.00041913,30]
[394547026,1763691569944,1000.0,0.00041913,30]
[394547027,1763691570520,1000.0,0.00041913,30]
[394547028,1763691571148,1000.0,0.00041913,30]
[394547029,1763691571739,1000.0,0.00041913,30]
[394547030,1763691572314,1000.0,0.00041913,30]
[394547031,1763691572897,1000.0,0.00041913,30]
[394547032,1763691573434,1000.0,0.00041913,30]
[394547033,1763691574017,1000.0,0.00041913,30]
[394547034,1763691574568,1000.0,0.00041913,30]
[394547035,1763691575133,1000.0,0.00041913,30]
[394547036,1763691575689,973.57170007,0.00041913,30]
[394547037,1763691602765,201.52894,0.00041913,60]
[394547038,1763691603132,638.92856943,0.00041913,120]
[394547039,1763691603177,15151.3551396,0.00041913,120]
[394547040,1763691607142,250.0,0.00041913,120]
[394547041,1763691611775,250.0,0.00041913,120]
[394547042,1763691615250,500.0,0.00041913,120]
[394547043,1763691615512,500.0,0.00041913,120]
[394547044,1763691618164,500.0,0.00041913,120]
[394547045,1763691618831,500.0,0.00041913,120]
[394547046,1763691619571,500.0,0.00041913,120]
[394547070,1763691667319,500.0,0.00041913,120]
[394547072,1763691704308,211.780333,0.00041913,50]
[394547074,1763691725230,500.0,0.00041913,120]
[394547075,1763691727247,800.0,0.00041913,120]
[394547076,1763691731542,158.70660415,0.00041913,120]
[394547077,1763691733066,250.0,0.00041913,120]
[394547078,1763691734645,500.0,0.00041913,120]
[394547079,1763691744531,250.0,0.00041913,120]
[394547081,1763691759005,1000.0,0.00041913,120]
[394547082,1763691766176,150.0,0.00041913,30]
[394547084,1763691786226,500.0,0.00041913,120]
[394547085,1763691786882,500.0,0.00041913,120]
[394547086,1763691787433,500.0,0.00041913,120]
[394547087,1763691788206,500.0,0.00041913,120]
[394547090,1763691791847,606.50204805,0.00041913,120]
[394547095,1763691806993,250.0,0.00041913,120]
[394547096,1763691815889,1000.0,0.00041913,120]
[394547101,1763691845946,500.0,0.00041913,120]
[394547102,1763691846024,500.0,0.00041913,120]
[394547103,1763691846205,500.0,0.00041913,120]
[394547104,1763691846592,500.0,0.00041913,120]
[394547105,1763691846728,151.0,0.00041913,50]
[394547106,1763691847205,151.0,0.00041913,50]
[394547107,1763691849766,151.0,0.00041913,50]
[394547108,1763691850010,151.0,0.00041913,50]
[394547109,1763691850311,172.332472,0.00041913,50]
[394547110,1763691851134,651.21106968,0.00041913,120]
[394547111,1763691853488,250.0,0.00041913,120]
[394547112,1763691872727,221.42,0.00041913,30]
[394547113,1763691874688,151.0,0.00041913,50]
[394547114,1763691874982,163.921596,0.00041913,50]
[394547115,1763691903180,640.44182992,0.00041913,30]
[394547116,1763691908200,617.97093479,0.00041913,120]
[394547117,1763691909257,150.33811929,0.00041913,30]
[394547118,1763691910675,500.0,0.00041913,120]
[394547119,1763691911359,500.0,0.00041913,120]
[394547120,1763691914384,500.0,0.00041913,120]
[394547122,1763691928471,1541.45828375,0.00041913,30]
[394547125,1763691932467,173.11057452,0.0002,120]
[394547127,1763691941625,170.08306374,0.00041913,120]
[394547128,1763691960283,160.42627616,0.00041913,30]
[394547129,1763691963718,1337.31686649,0.00041913,30]
[394547130,1763691964762,166.66,0.00015854,2]
[394547131,1763691966876,500.0,0.00041913,120]
[394547132,1763691966927,163.31268135,0.00041913,120]
[394547133,1763691967517,500.0,0.00041913,120]
[394547134,1763691968206,500.0,0.00041913,120]
[394547135,1763691972746,1015.04505554,0.00041913,30]
[394547136,1763691974194,250.0,0.00041913,120]
[394547137,1763691974888,1196.05785362,0.00041913,120]
[394547139,1763691979995,1220.3382214,0.00041913,30]
[394547141,1763691987649,250.0,0.00041913,120]
[394547142,1763691992488,151.0,0.00041913,50]
[394547143,1763691992802,155.790255,0.00041913,50]
[394547146,1763692026033,500.0,0.00041913,120]
[394547174,1763692028878,353.29070188,0.0002301,120]
[394547175,1763692029765,315.53400241,0.00016135,2]
[394547176,1763692029830,154.332851,0.00041913,120]
[394547186,1763692031336,520.0,0.00041913,120]
[394547187,1763692032075,500.0,0.00041913,120]
[394547188,1763692034486,500.0,0.00041913,120]
[394547189,1763692045512,1068.45603818,0.00041913,30]
[394547190,1763692050063,151.0,0.00041913,50]
[394547191,1763692050358,151.0,0.00041913,50]
[394547192,1763692050802,151.0,0.00041913,50]
[394547193,1763692050961,151.0,0.00041913,50]
[394547194,1763692051285,151.0,0.00041913,50]
[394547195,1763692051628,151.0,0.00041913,50]
[394547196,1763692051786,1000.0,0.00041913,60]
[394547197,1763692051932,151.0,0.00041913,50]
[394547198,1763692052264,151.0,0.00041913,50]
[394547199,1763692052587,151.0,0.00041913,50]
[394547200,1763692052896,151.0,0.00041913,50]
[394547201,1763692053201,151.0,0.00041913,50]
[394547202,1763692053479,238.124992,0.00041913,50]
[394547203,1763692054310,151.0,0.00041913,50]
[394547204,1763692054609,156.842669,0.00041913,50]
[394547205,1763692055334,488.44234841,0.00041913,120]
[394547208,1763692063989,228.31828132,0.00041913,120]
[394547209,1763692076831,267.48328898,0.00041913,30]
[394547210,1763692089272,151.0,0.00041913,50]
[394547211,1763692089581,151.0,0.00041913,50]
[394547212,1763692089867,151.0,0.00041913,50]
[394547213,1763692090171,158.499993,0.00041913,50]
[394547214,1763692096623,151.50967146,0.00041913,120]
[394547215,1763692101217,151.16332161,0.00041913,120]
[394547216,1763692106486,177.07533272,0.00041913,120]
[394547217,1763692108217,1139.12655222,0.00041913,120]
[394547219,1763692110280,906.4089978,0.00041913,120]
[394547220,1763692110948,340.49856703,0.000246,120]
[394547222,1763692112267,519.25024726,0.00041913,30]
[394547223,1763692115741,376.99412114,0.00041913,120]
[394547225,1763692117494,1178.81793741,0.00041913,120]
[394547227,1763692118271,793.45702967,0.00041913,30]
[394547228,1763692119276,471.28863284,0.00041913,120]
[394547230,1763692120832,349.6049114,0.00041913,48]
[394547231,1763692123004,866.69141586,0.00041913,30]
[394547232,1763692123333,2381.78923592,0.00041913,30]
[394547233,1763692124328,153.87372092,0.00041913,120]
[394547234,1763692124842,1060.0,0.00041913,120]
[394547235,1763692125029,187.31423128,0.0003,120]
[394547236,1763692125156,2863.37,0.00041913,110]
[394547237,1763692125221,1814.71413756,0.00041913,30]
[394547238,1763692127139,658.0,0.00041913,120]
[394547239,1763692127364,1860.89073516,0.00041913,30]
[394547240,1763692127417,167.76488488,0.00041913,30]
[394547242,1763692137407,200.0,0.00041913,120]